bitfinex/quotes_BTCUSD_20241110
["timestamp","ask_amount","ask_price","bid_price","bid_amount"]
[1731240741522,0.12594221,79618.0,79609.0,0.18883245]
[1731240741717,0.0786,79617.0,79600.0,0.18883245]
[1731240741918,0.12594221,79616.0,79601.0,0.18883245]
[1731240742140,0.12594221,79616.0,79572.0,0.005]
[1731240742141,0.18883245,79611.0,79593.0,0.005]
[1731240742345,0.12594221,79610.0,79594.0,0.18883245]
[1731240742570,0.12594221,79610.0,79593.0,0.005]
[1731240742795,0.0786,79617.0,79595.0,0.005]
[1731240742914,0.0786,79617.0,79594.0,0.005]
[1731240742915,0.18883245,79610.0,79598.0,0.005]
[1731240743150,0.13472623,79635.0,79614.0,0.01]
[1731240744270,0.13472623,79635.0,79601.0,0.18883245]
[1731240744271,0.12594221,79622.0,79601.0,0.18883245]
[1731240745081,0.12594221,79622.0,79609.0,0.18883245]
[1731240745232,0.18883245,79621.0,79601.0,0.18883245]
[1731240745449,0.12594221,79620.0,79601.0,0.18883245]
[1731240745602,0.13472623,79635.0,79610.0,0.19883245]
[1731240745804,0.18883245,79625.0,79610.0,0.01]
[1731240746006,0.12594221,79634.0,79613.0,0.005]
[1731240746264,0.12594221,79634.0,79611.0,0.18883245]
[1731240746265,0.18883245,79627.0,79614.0,0.005]
[1731240746481,0.000712,79640.0,79629.0,0.002]
[1731240746671,0.18883245,79633.0,79629.0,0.002]
[1731240746813,0.12594221,79638.0,79629.0,0.002]
[1731240747241,0.12594221,79638.0,79621.0,0.007]
[1731240747499,0.12594221,79638.0,79624.0,0.18883245]
[1731240747853,0.12594221,79638.0,79621.0,0.005]
[1731240748057,0.12594221,79638.0,79622.0,0.18883245]
[1731240749846,0.12594221,79638.0,79621.0,0.005]
[1731240749847,0.18883245,79635.0,79621.0,0.005]
[1731240750078,0.12594221,79638.0,79622.0,0.18883245]
[1731240751642,0.000712,79640.0,79638.0,0.01]
[1731240751921,0.000712,79640.0,79637.0,0.005]
[1731240752141,0.000712,79640.0,79638.0,0.005]
[1731240752312,0.000712,79640.0,79638.0,0.01]
[1731240752450,0.000712,79640.0,79638.0,0.01751134]
[1731240752668,0.000712,79640.0,79638.0,0.24294221]
[1731240753294,0.000712,79640.0,79638.0,0.24545317]
[1731240753506,0.000712,79640.0,79638.0,0.24294221]
[1731240755909,0.000712,79640.0,79608.0,0.002]
[1731240755910,0.005,79635.0,79608.0,0.002]
[1731240756092,0.005,79632.0,79624.0,0.18883245]
[1731240756268,0.12594221,79631.0,79612.0,0.18883245]
[1731240756847,0.18883245,79629.0,79608.0,0.002]
[1731240757057,0.12594221,79628.0,79603.0,0.18883245]
[1731240757265,0.005,79625.0,79603.0,0.18883245]
[1731240757460,0.005,79623.0,79603.0,0.18883245]
[1731240757657,0.005,79619.0,79603.0,0.18883245]
[1731240757981,0.005,79605.0,79596.0,0.18883245]
[1731240758180,0.12594221,79604.0,79596.0,0.18883245]
[1731240758403,0.12594221,79604.0,79587.0,0.18883245]
[1731240758630,0.005,79600.0,79588.0,0.00551374]
[1731240758779,0.005,79600.0,79571.0,0.23663245]
[1731240758780,0.005,79592.0,79580.0,0.18883245]
[1731240759182,0.005,79585.0,79571.0,0.18883245]
[1731240759407,0.12594221,79584.0,79572.0,0.18883245]
[1731240759607,0.19383245,79595.0,79549.0,0.003422]
[1731240759608,0.005,79578.0,79549.0,0.003422]
[1731240759808,0.12594221,79577.0,79566.0,0.18883245]
[1731240759988,0.12594221,79577.0,79549.0,0.001422]
[1731240759989,0.18883245,79576.0,79549.0,0.001422]
[1731240760184,0.12594221,79575.0,79549.0,0.001422]
[1731240760386,0.13094221,79575.0,79549.0,0.001422]
[1731240760585,0.13094221,79575.0,79554.0,0.18883245]
[1731240760787,0.12594221,79575.0,79562.0,0.002]
[1731240761215,0.12594221,79575.0,79563.0,0.18883245]
[1731240761394,0.18883245,79585.0,79574.0,0.002]
[1731240761597,0.18883245,79576.0,79566.0,0.002]
[1731240761938,0.12594221,79575.0,79565.0,0.002]
[1731240762139,0.12594221,79575.0,79564.0,0.002]
[1731240762690,0.12594221,79575.0,79554.0,0.18883245]
[1731240762894,0.12594221,79575.0,79566.0,0.002]
[1731240763203,0.18883245,79574.0,79554.0,0.18883245]
[1731240763418,0.12594221,79575.0,79554.0,0.18883245]
[1731240763616,0.18883245,79573.0,79554.0,0.18883245]
[1731240763820,0.18883245,79572.0,79555.0,0.1]
[1731240764078,0.18883245,79572.0,79568.0,0.002]
[1731240764742,0.12594221,79584.0,79568.0,0.002]
[1731240764909,0.18883245,79575.0,79568.0,0.002]
[1731240765113,0.12594221,79584.0,79568.0,0.002]
[1731240767650,0.12594221,79584.0,79572.0,0.002]
[1731240767850,0.12594221,79584.0,79582.0,0.002]
[1731240768109,0.18883245,79594.0,79582.0,0.002]
[1731240768353,0.31477466,79594.0,79582.0,0.002]
[1731240769523,0.005,79591.0,79575.0,0.002]
[1731240769730,0.12594221,79590.0,79575.0,0.002]
[1731240769931,0.005,79605.0,79575.0,0.002]
[1731240770084,0.18883245,79593.0,79575.0,0.002]
[1731240770289,0.31477466,79593.0,79579.0,0.002]
[1731240770488,0.03,79596.0,79587.0,0.002]
[1731240770687,0.18883245,79593.0,79587.0,0.002]
[1731240770928,0.12594221,79595.0,79587.0,0.002]
[1731240771428,0.03,79596.0,79573.0,0.0025131]
[1731240771429,0.03,79596.0,79595.0,0.002]
[1731240771942,0.18883245,79611.0,79595.0,0.002]
[1731240772162,0.18883245,79603.0,79595.0,0.002]
[1731240772379,0.12594221,79602.0,79588.0,0.0451]
[1731240772780,0.12594221,79602.0,79589.0,0.002]
[1731240773348,0.12594221,79602.0,79588.0,0.0451]
[1731240773349,0.18883245,79601.0,79588.0,0.0471]
[1731240773550,0.12594221,79600.0,79583.0,0.002]
[1731240774172,0.12594221,79600.0,79574.0,0.0451]
[1731240774173,0.12594221,79600.0,79582.0,0.002]
[1731240774375,0.18883245,79589.0,79571.0,0.002]
[1731240774577,0.5,79584.0,79568.0,0.000838]
[1731240774779,0.12594221,79583.0,79568.0,0.000838]
[1731240774990,0.005,79576.0,79568.0,0.000838]
[1731240775205,0.005,79565.0,79556.0,0.18883245]
[1731240775567,0.12594221,79564.0,79549.0,0.001422]
[1731240776231,0.18883245,79563.0,79549.0,0.001422]
[1731240776431,0.12594221,79562.0,79549.0,0.001422]
[1731240776869,0.18883245,79555.0,79549.0,0.001422]
[1731240777074,0.12594221,79554.0,79549.0,0.001422]
[1731240778269,0.005,79551.0,79549.0,0.001422]
[1731240778430,0.12594221,79550.0,79549.0,0.001422]
[1731240778629,0.005,79537.0,79522.0,0.18883245]
[1731240778867,0.13094221,79537.0,79522.0,0.18883245]
[1731240779133,0.12594221,79537.0,79522.0,0.18883245]
[1731240779886,0.09767605,79537.0,79532.0,0.002]
[1731240780088,0.09767605,79537.0,79515.0,0.0451]
[1731240780495,0.005,79550.0,79541.0,0.002]
[1731240780646,0.18883245,79544.0,79541.0,0.002]
[1731240780847,0.12594221,79543.0,79541.0,0.002]
[1731240781502,0.12594221,79543.0,79522.0,0.18883245]
[1731240781704,0.12594221,79543.0,79535.0,0.002]
[1731240781920,0.18883245,79542.0,79515.0,0.23393245]
[1731240782123,0.005,79547.0,79515.0,0.23393245]
[1731240782124,0.12594221,79541.0,79527.0,0.002]
[1731240782333,0.005,79537.0,79527.0,0.002]
[1731240782463,0.12594221,79537.0,79533.0,0.002]
[1731240783082,0.005,79551.0,79533.0,0.002]
[1731240783289,0.18883245,79547.0,79533.0,0.002]
[1731240783560,0.12594221,79546.0,79533.0,0.002]
[1731240783733,0.12594221,79546.0,79540.0,0.002]
[1731240784153,0.12594221,79546.0,79532.0,0.002]
[1731240784351,0.12594221,79546.0,79535.0,0.002]
[1731240784557,0.12594221,79546.0,79529.0,0.002]
[1731240784757,0.18883245,79545.0,79526.0,0.002]
[1731240785007,0.12594221,79544.0,79527.0,0.002]
[1731240785557,0.03,79539.0,79527.0,0.002]
[1731240785755,0.15594221,79539.0,79527.0,0.002]
[1731240785966,0.03,79539.0,79527.0,0.002]
[1731240786191,0.03,79539.0,79535.0,0.0827]
[1731240786363,0.18883245,79553.0,79543.0,0.002]
[1731240786622,0.18883245,79544.0,79539.0,0.002]
[1731240786801,0.12594221,79552.0,79543.0,0.002]
[1731240787416,0.12594221,79552.0,79526.0,0.13999692]
[1731240787417,0.18883245,79545.0,79530.0,0.002]
[1731240787588,0.12594221,79544.0,79530.0,0.002]
[1731240788089,0.12594221,79544.0,79531.0,0.002]
[1731240788310,0.08550888,79544.0,79531.0,0.002]
[1731240788492,0.005,79543.0,79530.0,0.002]
[1731240788765,0.12594221,79542.0,79519.0,0.002]
[1731240788928,0.0804,79551.0,79522.0,0.002]
[1731240788929,0.005,79537.0,79522.0,0.002]
[1731240789138,0.005,79537.0,79519.0,0.002]
[1731240789139,0.005,79533.0,79519.0,0.002]
[1731240789378,0.12594221,79532.0,79519.0,0.002]
[1731240789892,0.12594221,79532.0,79517.0,0.002]
[1731240790065,0.18883245,79531.0,79517.0,0.002]
[1731240790261,0.12594221,79530.0,79517.0,0.002]
[1731240790748,0.19383245,79543.0,79517.0,0.002]
[1731240790937,0.18883245,79534.0,79517.0,0.002]
[1731240791056,0.12594221,79533.0,79517.0,0.002]
[1731240791293,0.18883245,79543.0,79516.0,0.001422]
[1731240791294,0.18883245,79543.0,79537.0,0.002]
[1731240791505,0.12594221,79542.0,79531.0,0.002]
[1731240792652,0.12594221,79542.0,79536.0,0.00084]
[1731240793204,0.13094221,79542.0,79536.0,0.00084]
[1731240793595,0.10794221,79542.0,79536.0,0.00084]
[1731240793815,0.10294221,79542.0,79536.0,0.00084]
[1731240794635,0.005,79537.0,79536.0,0.00084]
[1731240794829,0.13094221,79537.0,79536.0,0.00084]
[1731240795949,0.12594221,79537.0,79536.0,0.00084]
[1731240796583,0.12594221,79537.0,79536.0,0.00284]
[1731240796787,0.12594221,79537.0,79536.0,0.00084]
[1731240797393,0.14720443,79537.0,79536.0,0.00084]
[1731240797602,0.005,79526.0,79512.0,0.002]
[1731240797836,0.5,79513.0,79495.0,0.001422]
[1731240798032,0.12594221,79512.0,79500.0,0.002]
[1731240798237,0.13094221,79510.0,79495.0,0.001422]
[1731240798449,0.13094221,79510.0,79488.0,0.001422]
[1731240798450,0.005,79504.0,79488.0,0.001422]
[1731240799485,0.12594221,79503.0,79488.0,0.001422]
[1731240799693,0.005,79500.0,79488.0,0.001422]
[1731240799920,0.12594221,79499.0,79495.0,0.002]
[1731240800171,0.18883245,79513.0,79494.0,0.002]
[1731240800412,0.18883245,79513.0,79508.0,0.002]
[1731240800608,0.18883245,79513.0,79512.0,0.002]
[1731240801022,0.18883245,79535.0,79508.0,0.005]
[1731240801227,0.18883245,79535.0,79516.0,0.002]
[1731240801892,0.18883245,79535.0,79508.0,0.005]
[1731240802103,0.18883245,79535.0,79534.0,0.5]
[1731240802312,0.31477466,79535.0,79508.0,0.005]
[1731240802521,0.12594221,79534.0,79513.0,0.18883245]
[1731240802738,0.12594221,79534.0,79508.0,0.005]
[1731240802739,0.12594221,79534.0,79516.0,0.002]
[1731240803600,0.18883245,79527.0,79519.0,0.002]
[1731240803809,0.12594221,79526.0,79517.0,0.002]
[1731240805525,0.00168,79537.0,79518.0,0.0777]
[1731240805741,0.03,79519.0,79518.0,0.0777]
[1731240805947,0.12594221,79536.0,79518.0,0.0777]
[1731240806155,0.18883245,79527.0,79526.0,0.002]
[1731240806382,0.12594221,79536.0,79526.0,0.002]
[1731240808516,0.12594221,79536.0,79523.0,0.002]
[1731240809403,0.10294221,79536.0,79523.0,0.002]
[1731240809855,0.19051245,79537.0,79505.0,0.18883245]
[1731240809856,0.12594221,79524.0,79505.0,0.18883245]
[1731240810083,0.12594221,79524.0,79513.0,0.18883245]
[1731240810304,0.12594221,79524.0,79505.0,0.18883245]
[1731240810526,0.18883245,79513.0,79507.0,0.002]
[1731240810727,0.12594221,79512.0,79497.0,0.0777]
[1731240810944,0.12594221,79512.0,79498.0,0.18883245]
[1731240811154,0.12594221,79512.0,79501.0,0.002]
[1731240811604,0.12594221,79512.0,79496.0,0.002]
[1731240812042,0.18883245,79509.0,79493.0,0.002]
[1731240812244,0.12594221,79508.0,79495.0,0.002]
[1731240812444,0.12594221,79508.0,79492.0,0.002]
[1731240812908,0.03,79517.0,79514.0,0.002]
[1731240813127,0.18883245,79507.0,79505.0,0.002]
[1731240813351,0.12594221,79516.0,79505.0,0.002]
[1731240813563,0.03,79517.0,79505.0,0.002]
[1731240813794,0.18883245,79513.0,79505.0,0.002]
[1731240814055,0.18883245,79513.0,79488.0,0.001422]
[1731240814056,0.12594221,79510.0,79488.0,0.001422]
[1731240814342,0.02188325,79512.0,79488.0,0.001422]
[1731240814343,0.005,79503.0,79488.0,0.001422]
[1731240814564,0.1,79506.0,79488.0,0.001422]
[1731240814565,0.005,79505.0,79488.0,0.001422]
[1731240814773,0.18883245,79502.0,79488.0,0.001422]
[1731240814983,0.12594221,79501.0,79488.0,0.001422]
[1731240815221,0.12594221,79501.0,79484.0,0.001422]
[1731240815429,0.14431298,79501.0,79484.0,0.001422]
[1731240815607,0.5,79494.0,79484.0,0.001422]
[1731240815868,0.12594221,79493.0,79484.0,0.001422]
[1731240816116,0.18883245,79492.0,79484.0,0.001422]
[1731240816327,0.12594221,79491.0,79484.0,0.001422]
[1731240816545,0.12594221,79491.0,79484.0,0.000422]
[1731240817646,0.18883245,79502.0,79470.0,0.0461]
[1731240817850,0.18883245,79492.0,79470.0,0.0461]
[1731240818061,0.18883245,79492.0,79471.0,0.0777]
[1731240818505,0.18883245,79492.0,79422.0,0.35419253]
[1731240818506,0.18883245,79480.0,79459.0,0.105]
[1731240818719,0.18883245,79484.0,79459.0,0.105]
[1731240818958,0.12594221,79483.0,79459.0,0.105]
[1731240819425,0.12594221,79483.0,79459.0,0.1]
[1731240819651,0.12594221,79483.0,79458.0,0.1777]
[1731240820721,0.18883245,79476.0,79458.0,0.1777]
[1731240820942,0.12594221,79475.0,79458.0,0.1777]
[1731240821145,0.12594221,79475.0,79458.0,0.0777]
[1731240821568,0.03236113,79487.0,79458.0,0.0777]
[1731240821777,0.18883245,79480.0,79458.0,0.0777]
[1731240822010,0.12594221,79479.0,79458.0,0.0777]
[1731240822887,0.18883245,79492.0,79458.0,0.1777]
[1731240823109,0.18883245,79478.0,79458.0,0.1777]
[1731240823360,0.12594221,79491.0,79458.0,0.1777]
[1731240823565,0.18883245,79483.0,79458.0,0.1777]
[1731240823770,0.12594221,79482.0,79458.0,0.1777]
[1731240824206,0.12594221,79482.0,79458.0,0.175544]
[1731240824848,0.18883245,79483.0,79458.0,0.175544]
[1731240824849,0.18883245,79483.0,79459.0,0.12594221]
[1731240825083,0.18883245,79481.0,79460.0,0.1]
[1731240825299,0.18883245,79473.0,79415.0,0.06205701]
[1731240825530,0.01968,79444.0,79326.0,0.23318868]
[1731240825806,0.005,79301.0,79300.0,0.03]
[1731240826024,1e-08,79299.0,79266.0,0.00499999]
[1731240826280,0.00200001,79312.0,79298.0,0.75499239]
[1731240826532,0.75499239,79302.0,79299.0,0.07549924]
[1731240826776,0.75499239,79300.0,79286.0,0.02708758]
[1731240827007,0.005,79303.0,79280.0,0.00299999]
[1731240827221,0.005,79301.0,79269.0,0.12594221]
[1731240827453,0.75499239,79294.0,79273.0,0.00199999]
[1731240827700,0.75499239,79294.0,79236.0,0.01968]
[1731240827701,0.75499239,79282.0,79254.0,0.00199999]
[1731240827909,0.75499239,79282.0,78943.0,0.25112627]
[1731240827910,0.01,79285.0,79186.0,0.06339019]
[1731240828139,0.005,79282.0,79187.0,0.01888784]
[1731240828339,0.005,79288.0,79199.0,0.19260276]
[1731240828568,0.75999239,79302.0,79269.0,0.00084]
[1731240828835,0.005,79287.0,79270.0,0.0793]
[1731240829046,0.005,79297.0,79270.0,0.0793]
[1731240829298,0.75499239,79302.0,79270.0,0.0793]
[1731240829299,0.75499239,79302.0,79273.0,0.75499239]
[1731240829502,0.75499239,79294.0,79274.0,0.12846457]
[1731240829753,0.75499239,79302.0,79274.0,0.12846457]
[1731240829984,0.75499239,79294.0,79274.0,0.12594221]
[1731240830218,0.75499239,79294.0,79271.0,0.012994]
[1731240830219,0.75499239,79292.0,79275.0,0.8809346]
[1731240830438,0.75499239,79302.0,79275.0,0.8809346]
[1731240830653,0.01,79333.0,79271.0,0.012994]
[1731240830654,0.18918254,79299.0,79283.0,0.1]
[1731240830867,0.18918254,79314.0,79295.0,0.18918254]
[1731240831116,0.18918254,79297.0,79288.0,0.1]
[1731240831342,0.005,79330.0,79293.0,0.1]
[1731240831595,0.005,79355.0,79293.0,0.1]
[1731240831596,0.18918254,79310.0,79294.0,0.02891825]
[1731240831800,0.18918254,79321.0,79298.0,0.099]
[1731240832008,0.005,79307.0,79284.0,0.04151248]
[1731240832222,0.19418254,79309.0,79293.0,0.18918254]
[1731240832223,0.012,79297.0,79293.0,0.18918254]
[1731240832456,0.005,79293.0,79283.0,0.18918254]
[1731240832663,0.005,79293.0,79286.0,0.18818254]
[1731240832866,0.005,79294.0,79278.0,0.00059283]
[1731240833086,0.005,79295.0,79283.0,0.18918254]
[1731240833292,0.005,79295.0,79284.0,0.01897754]
[1731240833531,0.005,79299.0,79284.0,0.18918254]
[1731240833737,0.19418254,79297.0,79278.0,0.00059283]
[1731240833960,0.19418254,79297.0,79269.0,0.00084]
[1731240833961,0.005,79292.0,79276.0,0.18918254]
[1731240834176,0.005,79301.0,79285.0,0.18918254]
[1731240834412,0.0005,79303.0,79276.0,0.18918254]
[1731240834413,0.18918254,79299.0,79286.0,0.01891825]
[1731240834640,0.18918254,79299.0,79278.0,0.12594221]
[1731240834855,0.0005,79303.0,79278.0,0.12594221]
[1731240834856,0.0005,79303.0,79284.0,0.18918254]
[1731240835071,0.24955106,79298.0,79285.0,0.12594221]
[1731240835270,0.24955106,79298.0,79286.0,0.1]
[1731240835389,0.06036852,79298.0,79277.0,0.1]
[1731240835586,0.19418254,79297.0,79278.0,0.02891825]
[1731240835786,0.19918254,79297.0,79276.0,0.18918254]
[1731240836035,0.0005,79303.0,79292.0,0.18918254]
[1731240836304,0.18918254,79302.0,79277.0,0.12594221]
[1731240836506,0.0005,79303.0,79290.0,0.18918254]
[1731240836732,0.0005,79303.0,79291.0,0.31512475]
[1731240836932,0.0005,79303.0,79292.0,0.03151247]
[1731240837092,0.0005,79303.0,79292.0,0.13151247]
[1731240837299,0.0005,79303.0,79296.0,0.12594221]
[1731240837508,0.18918254,79311.0,79303.0,0.1]
[1731240837840,0.18918254,79311.0,79297.0,0.0832]
[1731240837841,0.19418254,79311.0,79297.0,0.0832]
[1731240838020,0.007,79307.0,79281.0,0.1]
[1731240838224,0.005,79293.0,79285.0,0.18918254]
[1731240838406,0.005,79293.0,79277.0,0.18918254]
[1731240838613,0.005,79295.0,79278.0,0.18918254]
[1731240838812,0.18918254,79294.0,79278.0,0.00252249]
[1731240839032,0.18918254,79294.0,79272.0,0.00252243]
[1731240839238,0.18918254,79294.0,79273.0,0.14649611]
[1731240840290,0.005,79302.0,79273.0,0.14649611]
[1731240840603,0.18918254,79295.0,79274.0,0.1]
[1731240840732,0.18918254,79295.0,79276.0,0.1]
[1731240840935,0.18918254,79285.0,79277.0,0.16189122]
[1731240841306,0.18918254,79281.0,79263.0,0.0832]
[1731240841510,0.19618254,79295.0,79273.0,0.18918254]
[1731240841511,0.18918254,79295.0,79273.0,0.18918254]
[1731240841631,0.18918254,79284.0,79275.0,0.12594221]
[1731240841832,0.18918254,79294.0,79277.0,0.12594221]
[1731240842044,0.18918254,79286.0,79277.0,0.12594221]
[1731240842243,0.18918254,79294.0,79278.0,0.01259422]
[1731240842451,0.18918254,79282.0,79279.0,0.12594221]
[1731240842659,0.001686,79297.0,79279.0,0.12594221]
[1731240842859,0.18918254,79295.0,79279.0,0.12594221]
[1731240843470,0.001686,79297.0,79282.0,0.12594221]
[1731240843663,0.18918254,79296.0,79286.0,0.12594221]
[1731240843887,0.18918254,79296.0,79286.0,0.22594221]
[1731240844273,0.18918254,79296.0,79286.0,0.12594221]
[1731240844790,0.001686,79297.0,79286.0,0.12594221]
[1731240845239,0.001686,79297.0,79287.0,0.10252195]
[1731240845465,0.001686,79297.0,79291.0,0.12594221]
[1731240845663,0.001686,79297.0,79294.0,0.1]
[1731240845846,0.001686,79297.0,79292.0,0.02536802]
[1731240845847,0.001686,79297.0,79296.0,0.1]
[1731240846106,0.001686,79297.0,79296.0,0.22594221]
[1731240846288,0.18918254,79320.0,79297.0,0.0785]
[1731240846289,0.18918254,79310.0,79297.0,0.0785]
[1731240846476,0.18918254,79320.0,79310.0,0.1]
[1731240846673,0.18918254,79320.0,79297.0,0.0785]
[1731240846674,0.18918254,79320.0,79317.0,0.1]
[1731240847072,0.18918254,79331.0,79317.0,0.1]
[1731240847277,0.18918254,79323.0,79317.0,0.1]
[1731240847480,0.06036852,79322.0,79317.0,0.1]
[1731240847735,0.06036852,79322.0,79299.0,0.1]
[1731240847931,0.06036852,79322.0,79319.0,0.1]
[1731240848135,0.18918254,79321.0,79320.0,0.22594221]
[1731240848299,0.06036852,79322.0,79320.0,0.22594221]
[1731240848483,0.18918254,79331.0,79320.0,0.22594221]
[1731240848484,0.06036852,79321.0,79320.0,0.22594221]
[1731240849426,0.06036852,79321.0,79320.0,0.12594221]
[1731240849627,0.06036852,79321.0,79320.0,0.23853643]
[1731240852134,0.002,79352.0,79320.0,0.23853643]
[1731240852135,0.005,79368.0,79321.0,0.1]
[1731240852275,0.18918254,79329.0,79322.0,1.459]
[1731240852657,0.002,79372.0,79326.0,0.0785]
[1731240852872,0.18918254,79337.0,79327.0,3.151]
[1731240853064,0.005,79371.0,79328.0,3.117]
[1731240853259,0.18918254,79339.0,79328.0,0.1]
[1731240853463,0.18918254,79339.0,79338.0,0.22594221]
[1731240853595,0.005,79355.0,79338.0,0.02259422]
[1731240853835,0.18918254,79346.0,79339.0,0.12594221]
[1731240854020,0.005,79359.0,79339.0,0.12594221]
[1731240854221,0.18918254,79351.0,79339.0,0.12594221]
[1731240854422,0.005,79358.0,79339.0,0.12594221]
[1731240854614,0.18918254,79354.0,79339.0,0.12594221]
[1731240854817,0.18918254,79354.0,79340.0,0.01259422]
[1731240855209,0.005,79341.0,79302.0,0.0497]
[1731240855420,0.002,79340.0,79331.0,0.18918254]
[1731240855628,0.007,79345.0,79319.0,0.18918254]
[1731240855831,0.002,79345.0,79327.0,0.18918254]
[1731240856042,0.18918254,79343.0,79328.0,0.21062147]
[1731240856245,0.18918254,79343.0,79328.0,0.02143893]
[1731240856443,0.18918254,79343.0,79319.0,0.18918254]
[1731240856444,0.18918254,79343.0,79329.0,0.12594221]
[1731240856803,0.002,79348.0,79329.0,0.12594221]
[1731240857033,0.18918254,79330.0,79269.0,0.19002254]
[1731240857225,0.007,79330.0,79321.0,0.18918254]
[1731240857424,0.18918254,79329.0,79303.0,0.18918254]
[1731240857629,0.18918254,79329.0,79311.0,0.18918254]
[1731240857915,0.18918254,79321.0,79303.0,0.18918254]
[1731240858277,0.0056,79330.0,79304.0,0.12594221]
[1731240858558,0.18918254,79323.0,79305.0,0.03151247]
[1731240858715,0.18918254,79323.0,79306.0,0.12594221]
[1731240859137,0.18918254,79323.0,79307.0,0.1]
[1731240859367,0.18918254,79323.0,79309.0,0.1]
[1731240859620,0.0036,79312.0,79294.0,0.19170385]
[1731240859778,0.0036,79316.0,79295.0,0.12846388]
[1731240859982,0.002,79306.0,79296.0,0.03176464]
[1731240860249,0.002,79306.0,79286.0,0.18918254]
[1731240860778,0.18918254,79312.0,79284.0,0.0014]
[1731240860779,0.18918254,79312.0,79287.0,0.1284641]
[1731240860905,0.18918254,79304.0,79287.0,0.12594221]
[1731240861105,0.18418254,79312.0,79288.0,0.00252186]
[1731240861342,0.18918254,79296.0,79269.0,0.00084]
[1731240861514,0.005,79310.0,79291.0,0.18918254]
[1731240861721,0.02682814,79332.0,79291.0,0.18918254]
[1731240861722,0.18918254,79300.0,79292.0,0.02144023]
[1731240861972,0.18918254,79309.0,79288.0,0.0014]
[1731240862177,0.18918254,79309.0,79286.0,0.0014]
[1731240862776,0.18918254,79309.0,79285.0,0.0004]
[1731240862971,0.18918254,79308.0,79302.0,0.1]
[1731240863119,0.18918254,79308.0,79304.0,0.1]
[1731240863324,0.18918254,79308.0,79305.0,0.14778858]
[1731240863518,0.18918254,79308.0,79276.0,0.0004]
[1731240863731,0.18918254,79305.0,79291.0,0.099]
[1731240863935,0.18918254,79305.0,79289.0,0.1]
[1731240864145,0.18918254,79304.0,79290.0,0.12594221]
[1731240865785,0.18918254,79304.0,79291.0,0.1]
[1731240865989,0.18918254,79304.0,79293.0,0.1]
[1731240866201,0.18918254,79294.0,79292.0,0.03263422]
[1731240866393,0.0046,79299.0,79279.0,0.000842]
[1731240866602,0.005,79299.0,79289.0,0.18918254]
[1731240866819,0.18918254,79298.0,79290.0,0.00252207]
[1731240867139,0.18918254,79298.0,79279.0,0.000842]
[1731240867338,0.18918254,79298.0,79280.0,0.12594221]
[1731240867562,0.18918254,79298.0,79281.0,0.01534184]
[1731240867848,0.001684,79304.0,79282.0,0.12846431]
[1731240868041,0.18918254,79297.0,79283.0,0.1]
[1731240868246,0.18918254,79297.0,79285.0,0.1]
[1731240868526,0.18918254,79297.0,79287.0,0.1]
[1731240868750,0.001684,79304.0,79289.0,0.1]
[1731240868922,0.001684,79304.0,79291.0,0.1]
[1731240868923,0.18918254,79298.0,79291.0,0.1]
[1731240869151,0.18918254,79298.0,79292.0,0.00252199]
[1731240869358,0.001684,79304.0,79293.0,0.12594221]
[1731240869558,0.18918254,79303.0,79294.0,0.1]
[1731240869784,0.001684,79304.0,79294.0,0.1]
[1731240869785,0.001684,79304.0,79296.0,0.1]
[1731240869985,0.001684,79304.0,79297.0,0.12594221]
[1731240870225,0.18918254,79303.0,79298.0,0.1]
[1731240870457,0.001684,79304.0,79300.0,0.1]
[1731240871463,0.18918254,79303.0,79282.0,0.0004]
[1731240871757,0.001684,79304.0,79282.0,0.0004]
[1731240871758,0.001684,79304.0,79302.0,0.00086614]
[1731240871968,0.18918254,79303.0,79302.0,0.00086614]
[1731240872166,0.001684,79304.0,79302.0,0.00086614]
[1731240873904,0.001684,79304.0,79302.0,0.12680835]
[1731240874501,0.18918254,79303.0,79302.0,0.00086614]
[1731240874652,0.001684,79304.0,79302.0,0.00086614]
[1731240874853,0.002,79303.0,79302.0,0.00086614]
[1731240875679,0.0801,79303.0,79302.0,0.00086614]
[1731240876087,0.001684,79304.0,79302.0,0.00086614]
[1731240877157,0.001684,79304.0,79303.0,0.12594221]
[1731240877331,0.001684,79304.0,79303.0,0.14114475]
[1731240877534,0.001684,79304.0,79303.0,0.24114475]
[1731240877812,0.001684,79304.0,79303.0,0.23862304]
[1731240878376,0.001684,79304.0,79303.0,0.24114431]
[1731240878579,0.18918254,79323.0,79306.0,0.0004]
[1731240878777,0.18918254,79314.0,79310.0,0.1004]
[1731240879078,0.18918254,79323.0,79318.0,0.1]
[1731240879826,0.001684,79329.0,79320.0,0.1]
[1731240880022,0.001684,79329.0,79322.0,0.1]
[1731240880273,0.001684,79329.0,79324.0,0.1]
[1731240880473,0.001684,79329.0,79326.0,0.1]
[1731240880676,0.001684,79329.0,79327.0,0.12594221]
[1731240880877,0.001684,79329.0,79328.0,0.09904445]
[1731240881056,0.001684,79329.0,79328.0,0.22498666]
[1731240881256,0.001684,79329.0,79328.0,0.09904445]
[1731240881435,0.001684,79329.0,79328.0,0.13813129]
[1731240882611,0.001684,79329.0,79328.0,0.01218908]
[1731240882806,0.001684,79329.0,79320.0,0.02581381]
[1731240883027,0.001684,79329.0,79322.0,0.1]
[1731240883227,0.001684,79329.0,79324.0,0.1]
[1731240883369,0.001684,79329.0,79326.0,0.1]
[1731240883710,0.001684,79329.0,79328.0,0.1]
[1731240883866,0.001684,79329.0,79328.0,0.26745469]
[1731240884079,0.001684,79329.0,79328.0,0.14151248]
[1731240884287,0.001684,79329.0,79328.0,0.1]
[1731240884487,0.001684,79329.0,79317.0,0.02660821]
[1731240884751,0.001684,79329.0,79308.0,0.18918254]
[1731240884930,0.006284,79329.0,79316.0,0.18918254]
[1731240885234,0.006284,79329.0,79308.0,0.18918254]
[1731240885235,0.18918254,79327.0,79308.0,0.18918254]